fUSD/lending_fUSD_20260309
["ID","MTS","AMOUNT","RATE_DAILY","PERIOD"]
[408012431,1773024644021,-551.0,0.00019713,2]
[408012432,1773024644030,-150.0,0.00019713,2]
[408012433,1773024644039,-150.0,0.00019713,2]
[408012434,1773024644048,-279.0,0.00019713,2]
[408012435,1773024644057,-250.0,0.00019726,2]
[408012436,1773024644067,-151.16141493,0.00019726,2]
[408012437,1773024644075,-152.59725118,0.00019726,2]
[408012438,1773024644084,-152.0,0.00019734,8]
[408012439,1773024644097,-381.7,0.00019743,2]
[408012440,1773024644107,-3778.793,0.00019773,2]
[408012441,1773024644116,-184.396,0.00019773,2]
[408012442,1773024644126,-152.8085332,0.00019779,2]
[408012443,1773024644135,-300.0,0.000198,7]
[408012444,1773024644145,-220.66738088,0.000198,2]
[408012445,1773024644154,-2000.0,0.000198,2]
[408012446,1773024644163,-2054.42857938,0.000198,2]
[408012447,1773024644172,-135663.30791463,0.0001981,2]
[408012448,1773024644181,-26487.52782641,0.0001981,2]
[408012449,1773024644192,-150.0,0.00019816,2]
[408012450,1773024644201,-381.7,0.00019829,2]
[408012451,1773024644211,-200.0,0.0001984,2]
[408012452,1773024644219,-241.1805101,0.00019842,2]
[408012453,1773024644229,-194.72792766,0.00019846,2]
[408012454,1773024644238,-1592.87721993,0.00019846,2]
[408012455,1773024644248,-233.51889341,0.00019846,2]
[408012456,1773024644258,-293.17725025,0.00019846,2]
[408012457,1773024644268,-202.21706518,0.00019846,2]
[408012458,1773024644277,-152.1,0.0001985,2]
[408012459,1773024644286,-150.0,0.00019873,2]
[408012460,1773024644296,-331.5,0.00019882,2]
[408012461,1773024644305,-5800.0,0.00019892,2]
[408012462,1773024644315,-24718.91360439,0.000199,3]
[408012463,1773024644324,-2000.0,0.000199,2]
[408012464,1773024644334,-2000.0,0.000199,2]
[408012465,1773024644345,-25000.0,0.000199,3]
[408012466,1773024644354,-2000.0,0.000199,2]
[408012467,1773024644363,-2000.0,0.000199,2]
[408012468,1773024644372,-632.2526478,0.000199,2]
[408012469,1773024644382,-2000.0,0.000199,2]
[408012470,1773024644391,-2000.0,0.000199,2]
[408012471,1773024644401,-25000.0,0.000199,3]
[408012472,1773024644410,-2000.0,0.000199,2]
[408012473,1773024644421,-155.23960208,0.000199,2]
[408012479,1773024646096,-500.0,0.00017595,2]
[408012480,1773024646110,-500.0,0.00017595,2]
[408012481,1773024646126,-500.0,0.00017595,2]
[408012482,1773024646141,-500.0,0.00017595,2]
[408012483,1773024646155,-500.0,0.00017595,2]
[408012484,1773024646172,-500.0,0.00017595,2]
[408012485,1773024646188,-500.0,0.00017595,2]
[408012486,1773024646204,-500.0,0.00017595,2]
[408012487,1773024646219,-500.0,0.00017595,2]
[408012488,1773024646232,-242.8089015,0.00017595,2]
[408012489,1773024646246,-500.0,0.00017595,2]
[408012490,1773024646261,-456.71483701,0.00017595,2]
[408012491,1773024646524,-43.28516299,0.00017595,2]
[408012492,1773024646538,-500.0,0.00017595,2]
[408012493,1773024646553,-500.0,0.00017595,2]
[408012494,1773024646566,-847.0,0.000184,2]
[408012495,1773024646580,-2232.0,0.000184,2]
[408012496,1773024646595,-757.09917092,0.00019178,2]
[408012497,1773024646617,-242.90082908,0.00019178,2]
[408012498,1773024646632,-1000.0,0.00019452,2]
[408012499,1773024646649,-750.74450378,0.00019726,2]
[408012500,1773024646670,-249.25549622,0.00019726,2]
[408012501,1773024646685,-473.64000538,0.000199,2]
[408012502,1773024646735,-5171.12039254,0.000199,2]
[408012503,1773024646749,-519.16279996,0.000199,2]
[408012504,1773024647279,-4845.01079546,0.00018408,2]
[408012505,1773024647294,-300.0,0.00019,6]
[408012506,1773024647309,-1480.83720004,0.000199,2]
[408012507,1773024647323,-420.0,0.000199,7]
[408012508,1773024647338,-2355.27867949,0.000199,2]
[408012509,1773024647353,-366.46634587,0.000199,2]
[408012510,1773024647368,-1063.05772842,0.000199,2]
[408012511,1773024647383,-2000.0,0.000199,2]
[408012512,1773024647397,-710.98840614,0.000199,2]
[408012513,1773024647413,-2519.66889702,0.000199,2]
[408012514,1773024647427,-3281.90319933,0.000199,2]
[408012515,1773024647441,-1297.0680286,0.000199,2]
[408012516,1773024749354,766.1374791,8e-05,2]
[408012519,1773024841570,611.94,9.293e-05,2]
[408012520,1773024841985,611.94,9.782e-05,2]
[408012521,1773024842203,611.94,0.00010272,2]
[408012522,1773024842400,611.94,0.00010761,2]
[408012523,1773024842617,611.94,0.0001125,2]
[408012524,1773024863669,-611.94,0.00011739,2]
[408012525,1773024863696,-611.94,0.00012228,2]
[408012526,1773024863729,-611.94,0.00012717,2]
[408012539,1773024999119,2908.0,0.0002,120]
[408012540,1773025052069,530.34372787,8.206e-05,2]
[408012542,1773025194907,1882.0619399,0.0001199,2]
[408012543,1773025202332,500.0,0.00013206,2]
[408012544,1773025202695,500.0,0.00013206,2]
[408012545,1773025203046,500.0,0.00013206,2]
[408012546,1773025203410,500.0,0.00013206,2]
[408012547,1773025203775,500.0,0.00013206,2]
[408012548,1773025204152,500.0,0.00013206,2]
[408012549,1773025204513,500.0,0.00013206,2]
[408012551,1773025261102,168.99,0.00013,2]
[408012552,1773025307834,4502.66368818,0.00013,15]
[408012553,1773025338521,500.0,8.206e-05,2]
[408012554,1773025338972,703.99093116,8.206e-05,2]
[408012555,1773025349270,500.0,8e-05,2]
[408012556,1773025404918,-165.0,0.00012717,3]
[408012557,1773025454361,2081.9739535,0.00013206,2]
[408012559,1773025643788,500.0,8.206e-05,2]
[408012560,1773025644406,500.0,8.206e-05,2]
[408012561,1773025644911,500.0,8.206e-05,2]
[408012562,1773025645391,500.0,8.206e-05,2]
[408012563,1773025645874,700.0,8.206e-05,2]
[408012575,1773025831749,-163.0,0.00013206,2]
[408012576,1773025831761,-162.0,0.00013206,2]
[408012577,1773025831771,-254.29460697,0.00013206,2]
[408012578,1773025831784,-611.94,0.00013206,2]
[408012579,1773025831798,-611.94,0.00013695,2]
[408012580,1773025831810,-163.51,0.00014,2]
[408012581,1773025831820,-280.56925841,0.00014085,2]
[408012582,1773025831831,-611.94,0.00014185,2]
[408012583,1773025831841,-150.0,0.00014525,2]
[408012584,1773025831852,-1200.0,0.00014525,2]
[408012585,1773025831862,-8011.42280964,0.00014526,2]
[408012586,1773025831874,-719.21719036,0.00014526,2]
[408012587,1773025831884,-9999.99,0.00014526,2]
[408012588,1773025831893,-150.99,0.00014527,2]
[408012589,1773025831903,-1476.68,0.00014527,2]
[408012590,1773025831912,-600.0,0.00014527,2]
[408012591,1773025831923,-607.96568004,0.00014527,2]
[408012592,1773025831932,-250.0,0.00014527,2]
[408012593,1773025831942,-300.30611518,0.00014527,2]
[408012594,1773025831952,-300.36723807,0.00014527,2]
[408012595,1773025831962,-611.94,0.00014674,2]
[408012596,1773025831971,-1852.42,0.00014728,2]
[408012597,1773025831981,-207.82,0.00014763,2]
[408012598,1773025831995,-1600.0,0.00014781,2]
[408012599,1773025832005,-150.0,0.00014805,2]
[408012600,1773025832015,-2323.32,0.0001484,2]
[408012601,1773025832026,-166.66,0.00014995,2]
[408012602,1773025832037,-844.72,0.00015,30]
[408012603,1773025832047,-500.0,0.00015,30]
[408012604,1773025832058,-500.0,0.00015,30]
[408012605,1773025832068,-500.0,0.00015,30]
[408012606,1773025832078,-517.28286247,0.00015,30]
[408012607,1773025832088,-500.0,0.00015,30]
[408012608,1773025832098,-500.0,0.00015,30]
[408012609,1773025832108,-500.0,0.00015,30]
[408012610,1773025832118,-500.0,0.00015,30]
[408012611,1773025832127,-500.0,0.00015,30]
[408012612,1773025832137,-500.0,0.00015,30]
[408012613,1773025832146,-500.0,0.00015,30]
[408012614,1773025832156,-500.0,0.00015,30]
[408012615,1773025832166,-500.0,0.00015,30]
[408012616,1773025832176,-163.51,0.00015114,2]
[408012617,1773025832188,-611.94,0.00015163,2]
[408012618,1773025832198,-9999.99,0.0001531,2]
[408012619,1773025832208,-166.66,0.00015311,2]
[408012620,1773025832218,-281.42,0.00015506,2]
[408012621,1773025832228,-166.66,0.00015627,2]
[408012622,1773025832238,-500.0,0.00015642,2]
[408012623,1773025832254,-151.0,0.00015642,2]
[408012624,1773025832263,-500.0,0.00015642,2]
[408012625,1773025832273,-151.0,0.00015642,2]
[408012626,1773025832283,-500.0,0.00015642,2]
[408012627,1773025832293,-151.0,0.00015642,2]
[408012628,1773025832307,-500.0,0.00015642,2]
[408012629,1773025832317,-151.0,0.00015642,2]
[408012630,1773025832326,-500.0,0.00015642,2]
[408012631,1773025832336,-151.0,0.00015642,2]
[408012632,1773025832346,-500.0,0.00015642,2]
[408012633,1773025832355,-151.0,0.00015642,2]
[408012634,1773025832365,-500.0,0.00015642,2]
[408012635,1773025832375,-151.0,0.00015642,2]
[408012636,1773025832388,-500.0,0.00015642,2]
[408012637,1773025832398,-151.0,0.00015642,2]
[408012638,1773025832408,-500.0,0.00015642,2]
[408012639,1773025832418,-151.0,0.00015642,2]
[408012640,1773025832427,-151.0,0.00015642,2]
[408012641,1773025832438,-500.0,0.00015642,2]
[408012642,1773025832448,-151.0,0.00015642,2]
[408012643,1773025832458,-500.0,0.00015642,2]
[408012644,1773025832468,-500.0,0.00015642,2]
[408012645,1773025832478,-500.0,0.00015642,2]
[408012646,1773025832487,-500.0,0.00015642,2]
[408012647,1773025832497,-500.0,0.00015642,2]
[408012648,1773025832508,-500.0,0.00015642,2]
[408012649,1773025832517,-500.0,0.00015642,2]
[408012650,1773025832527,-500.0,0.00015642,2]
[408012651,1773025832538,-500.0,0.00015642,2]
[408012652,1773025832551,-500.0,0.00015642,2]
[408012653,1773025832560,-500.0,0.00015642,2]
[408012654,1773025832571,-151.0,0.00015642,2]
[408012655,1773025832580,-500.0,0.00015642,2]
[408012656,1773025832589,-151.0,0.00015642,2]
[408012657,1773025832599,-500.0,0.00015642,2]
[408012658,1773025832611,-151.0,0.00015642,2]
[408012659,1773025832621,-151.0,0.00015642,2]
[408012660,1773025832630,-151.0,0.00015642,2]
[408012661,1773025832641,-151.0,0.00015642,2]
[408012662,1773025832651,-151.0,0.00015642,2]
[408012663,1773025832661,-151.0,0.00015642,2]
[408012664,1773025832973,-151.0,0.00015642,2]
[408012665,1773025832983,-151.0,0.00015642,2]
[408012666,1773025832993,-151.0,0.00015642,2]
[408012667,1773025833002,-151.0,0.00015642,2]
[408012668,1773025833013,-151.0,0.00015642,2]
[408012669,1773025833022,-151.0,0.00015642,2]
[408012670,1773025833032,-151.0,0.00015642,2]
[408012671,1773025833042,-151.0,0.00015642,2]
[408012672,1773025833055,-151.0,0.00015642,2]
[408012673,1773025833065,-151.0,0.00015642,2]
[408012674,1773025833074,-151.0,0.00015642,2]
[408012675,1773025833084,-151.0,0.00015642,2]
[408012676,1773025833093,-151.0,0.00015642,2]
[408012677,1773025833103,-182.0,0.00015643,2]
[408012678,1773025833114,-611.94,0.00015652,2]
[408012679,1773025833124,-2578.96,0.00015774,2]
[408012680,1773025833133,-201.10564133,0.000159,2]
[408012681,1773025833143,-150.0,0.000159,2]
[408012682,1773025833152,-166.66,0.00015942,2]
[408012683,1773025833162,-1680.0,0.00015978,2]
[408012684,1773025833171,-611.94,0.00016141,2]
[408012685,1773025833181,-5000.00595703,0.000162,5]
[408012686,1773025833190,-163.51,0.00016229,2]
[408012687,1773025833200,-166.66,0.00016258,2]
[408012688,1773025833209,-166.66,0.00016574,2]
[408012689,1773025833219,-1600.0,0.00016628,2]
[408012690,1773025833229,-611.94,0.0001663,2]
[408012691,1773025833241,-10967.03099821,0.000169,2]
[408012692,1773025833250,-2991.7671086,0.000169,2]
[408012693,1773025833261,-4969.76940586,0.0001699,2]
[408012694,1773025833274,-2900.94357344,0.0001699,2]
[408012695,1773025833291,-391.88,0.0001699,2]
[408012696,1773025833309,-645.79236201,0.0001699,2]
[408012700,1773025837868,-250.0,0.00015,2]
[408012701,1773025837877,-271785.30160753,0.00017,2]
[408012702,1773025837888,-40606.66773475,0.00017,2]
[408012703,1773025837897,-501.0,0.00017,2]
[408012704,1773025837906,-501.0,0.00017,2]
[408012705,1773025837915,-611.94,0.00017119,2]
[408012706,1773025837924,-10967.0309982,0.00017233,2]
[408012707,1773025837933,-2991.76710851,0.00017233,2]
[408012708,1773025837942,-163.51,0.00017343,2]
[408012709,1773025837951,-162.0,0.00017359,3]
[408012710,1773025837961,-10967.0309982,0.00017567,2]
[408012711,1773025837970,-2991.76710851,0.00017567,2]
[408012712,1773025837979,-2351.0,0.00017575,2]
[408012713,1773025837988,-611.94,0.00017608,2]
[408012714,1773025837997,-2000.0,0.00017859,2]
[408012715,1773025838006,-10967.0309982,0.000179,2]
[408012716,1773025838015,-2991.76710851,0.000179,2]
[408012717,1773025838024,-12798.57558659,0.0001799,2]
[408012718,1773025838033,-899.14079922,0.00018,7]
[408012719,1773025838043,-23665.82877808,0.00018,2]
[408012745,1773025839979,-259.39905185,0.00018,2]
[408012746,1773025839991,-19987.39012938,0.00018,2]
[408012747,1773025840000,-1400.0,0.00018082,7]
[408012748,1773025840010,-611.94,0.00018098,2]
[408012749,1773025840020,-1502.21515879,0.00018202,2]
[408012750,1773025840029,-243.63694136,0.00018202,2]
[408012751,1773025840039,-10967.0309982,0.00018233,2]
[408012752,1773025840049,-2991.76710851,0.00018233,2]
[408012753,1773025840059,-501.0,0.0001834,3]
[408012754,1773025840069,-500.0,0.00018356,7]
[408012755,1773025840079,-1200.0,0.00018356,7]
[408012756,1773025840088,-2156.09,0.00018367,2]
[408012757,1773025840098,-151.0,0.00018381,2]
[408012758,1773025840107,-877.45,0.00018394,2]
[408012759,1773025840117,-29665.0,0.00018425,2]
[408012760,1773025840127,-163.51,0.00018457,2]
[408012761,1773025840135,-1600.0,0.00018476,2]
[408012762,1773025840145,-10967.0309982,0.00018567,2]
[408012763,1773025840154,-2991.76710851,0.00018567,2]
[408012764,1773025840163,-1883.35,0.00018587,2]
[408012765,1773025840172,-611.94,0.00018587,2]
[408012766,1773025840181,-877.45,0.00018668,2]
[408012767,1773025840190,-4396.72,0.00018713,2]
[408012768,1773025840200,-847.0,0.0001872,2]
[408012769,1773025840209,-1428.38747117,0.00018768,2]
[408012770,1773025840218,-500.0,0.00018768,2]
[408012771,1773025840227,-578.20924308,0.00018768,2]
[408012772,1773025840237,-151.0,0.00018768,2]
[408012773,1773025840246,-209.40437684,0.00018768,2]
[408012774,1773025840256,-174.61919141,0.00018768,2]
[408012775,1773025840265,-202.21706518,0.00018768,2]
[408012776,1773025840275,-262.90206542,0.00018768,2]
[408012777,1773025840284,-500.0,0.00018768,2]
[408012778,1773025840294,-500.0,0.00018768,2]
[408012779,1773025840307,-500.0,0.00018768,2]
[408012780,1773025840318,-500.0,0.00018768,2]
[408012781,1773025840327,-500.0,0.00018768,2]
[408012782,1773025840336,-500.0,0.00018768,2]
[408012783,1773025840345,-500.0,0.00018768,2]
[408012784,1773025840354,-500.0,0.00018768,2]
[408012785,1773025840364,-500.0,0.00018768,2]
[408012786,1773025840374,-500.0,0.00018768,2]
[408012787,1773025840383,-500.0,0.00018768,2]
[408012788,1773025840392,-209.0,0.00018793,2]
[408012789,1773025840401,-500.0,0.000188,2]
[408012790,1773025840410,-500.0,0.000188,2]
[408012791,1773025840419,-500.0,0.000188,2]
[408012792,1773025840429,-151.0,0.00018823,2]
[408012793,1773025840438,-172.87392778,0.00018855,2]
[408012794,1773025840447,-209.0,0.00018867,2]
[408012795,1773025840457,-10967.0309982,0.000189,2]
[408012796,1773025840466,-2991.76710851,0.000189,2]
[408012797,1773025840476,-924.04,0.00018924,2]
[408012798,1773025840487,-209.0,0.00018934,2]
[408012799,1773025840495,-877.45,0.00018942,2]
[408012800,1773025840504,-2625.30355632,0.00019,2]
[408012801,1773025840513,-500.0,0.00019,6]
[408012802,1773025840523,-350.0,0.00019021,3]
[408012803,1773025840532,-439.0,0.00019022,2]
[408012804,1773025840541,-1100.0,0.000191,6]
[408012805,1773025840550,-439.0,0.00019111,2]
[408012806,1773025840560,-209.0,0.00019151,2]
[408012807,1773025840570,-1400.0,0.00019178,7]
[408012808,1773025840580,-2000.0,0.000192,2]
[408012809,1773025840589,-439.0,0.000192,2]
[408012810,1773025840598,-629.1192678,0.000192,7]
[408012811,1773025840627,-1070.8807322,0.000192,7]
[408012812,1773025840636,-461.37,0.00019216,2]
[408012813,1773025840646,-22853.8339,0.00019221,2]
[408012814,1773025840656,-3263.3677,0.00019221,2]
[408012815,1773025840666,-10967.0309982,0.00019233,2]
[408012816,1773025840676,-2991.76710851,0.00019233,2]
[408012817,1773025840685,-350.0,0.00019275,2]
[408012818,1773025840696,-439.0,0.00019289,2]
[408012819,1773025840706,-2200.0,0.000193,7]
[408012820,1773025840715,-1481.23780761,0.00019316,2]
[408012821,1773025840724,-217.15233878,0.00019316,2]
[408012822,1773025840734,-181.08010149,0.00019316,2]
[408012823,1773025840743,-272.62944185,0.00019316,2]
[408012824,1773025840753,-3508.024,0.00019321,2]
[408012825,1773025840763,-1342.0,0.00019321,2]
[408012826,1773025840773,-622.461,0.00019321,2]
[408012827,1773025840782,-1279.0,0.00019321,2]
[408012828,1773025840794,-150.294,0.00019321,2]
[408012829,1773025840806,-1213.0,0.00019321,2]
[408012830,1773025840815,-925.993,0.00019321,2]
[408012831,1773025840825,-416.395,0.00019321,2]
[408012832,1773025840834,-2461.0,0.00019321,2]
[408012833,1773025840844,-6111.903,0.00019321,2]
[408012834,1773025840853,-209.0,0.00019326,2]
[408012835,1773025840863,-3292.0,0.00019333,2]
[408012836,1773025840873,-558.0,0.0001934,2]
[408012837,1773025840882,-1005.4446965,0.00019348,2]
[408012838,1773025840891,-151.8950769,0.00019348,2]
[408012839,1773025840900,-501.8016713,0.00019348,2]
[408012840,1773025840909,-163.0,0.0001936,2]
[408012841,1773025840917,-847.0,0.0001936,2]
[408012842,1773025840926,-781.45,0.00019372,2]
[408012843,1773025840935,-439.0,0.00019378,2]
[408012844,1773025840944,-2800.0,0.000194,7]
[408012845,1773025840953,-558.0,0.0001941,2]
[408012846,1773025840962,-209.0,0.00019415,2]
[408012847,1773025840972,-209.0,0.00019449,2]
[408012848,1773025840982,-172.87392778,0.00019452,7]
[408012849,1773025840991,-500.0,0.00019452,7]
[408012850,1773025841001,-1200.0,0.00019452,7]
[408012851,1773025841010,-1000.0,0.00019452,2]
[408012852,1773025841019,-153.33762345,0.00019461,2]
[408012853,1773025841028,-439.0,0.00019467,2]
[408012854,1773025841037,-2924.64,0.00019467,2]
[408012855,1773025841046,-2924.64,0.00019467,2]
[408012856,1773025841061,-3814.3,0.00019467,2]
[408012857,1773025841070,-150.0,0.00019473,2]
[408012858,1773025841079,-168.583622,0.00019487,2]
[408012859,1773025841089,-6653.3483966,0.00019487,2]
[408012860,1773025841098,-84374.8710483,0.00019487,2]
[408012861,1773025841107,-500.0,0.000195,7]
[408012862,1773025841116,-500.0,0.00019507,2]
[408012863,1773025841125,-500.0,0.00019507,2]
[408012864,1773025841135,-150.0,0.00019507,2]
[408012865,1773025841144,-500.0,0.00019507,2]
[408012866,1773025841153,-500.0,0.00019507,2]
[408012867,1773025841163,-277.09096331,0.00019507,2]
[408012868,1773025841172,-150.0,0.00019507,2]
[408012869,1773025841181,-250.0,0.00019507,2]
[408012870,1773025841190,-235.50154825,0.00019507,2]
[408012871,1773025841199,-150.0,0.00019507,2]
[408012872,1773025841208,-232.79888752,0.00019507,2]
[408012873,1773025841218,-150.0,0.00019507,2]
[408012874,1773025841227,-200.0,0.00019507,2]
[408012875,1773025841236,-200.87563366,0.00019507,2]
[408012876,1773025841246,-150.0,0.00019507,2]
[408012877,1773025841255,-200.0,0.00019507,2]
[408012878,1773025841264,-500.0,0.00019507,2]
[408012879,1773025841273,-150.0,0.00019507,2]
[408012880,1773025841283,-150.0,0.00019507,2]
[408012881,1773025841292,-150.0,0.00019507,2]
[408012882,1773025841303,-200.0,0.00019507,2]
[408012883,1773025841313,-500.0,0.00019507,2]
[408012884,1773025841322,-150.0,0.00019507,2]
[408012885,1773025841331,-150.0,0.00019507,2]
[408012886,1773025841341,-150.0,0.00019507,2]
[408012887,1773025841351,-500.0,0.00019507,2]
[408012888,1773025841360,-500.0,0.00019507,2]
[408012889,1773025841370,-500.0,0.00019507,2]
[408012890,1773025841379,-150.0,0.00019507,2]
[408012891,1773025841389,-209.0,0.00019513,2]
[408012892,1773025841399,-439.0,0.00019555,2]
[408012893,1773025841408,-500.0,0.00019562,2]
[408012894,1773025841417,-500.0,0.00019562,2]
[408012895,1773025841426,-164.52367001,0.00019562,2]
[408012896,1773025841436,-500.0,0.00019562,2]
[408012897,1773025841445,-501.82767376,0.00019562,2]
[408012898,1773025841454,-150.0,0.00019562,2]
[408012899,1773025841463,-150.0,0.00019562,2]
[408012900,1773025841472,-150.0,0.00019562,2]
[408012901,1773025841482,-500.0,0.00019562,2]
[408012902,1773025841491,-150.0,0.00019562,2]
[408012903,1773025841500,-150.0,0.00019562,2]
[408012904,1773025841509,-200.0,0.00019562,2]
[408012905,1773025841519,-150.0,0.00019562,2]
[408012906,1773025841528,-500.0,0.00019562,2]
[408012907,1773025841537,-500.0,0.00019562,2]
[408012908,1773025841547,-500.0,0.00019562,2]
[408012909,1773025841558,-500.0,0.00019562,2]
[408012910,1773025841568,-10967.0309982,0.00019567,2]
[408012911,1773025841577,-2991.76710851,0.00019567,2]
[408012912,1773025841587,-2648.0,0.00019571,2]
[408012913,1773025841596,-163.51,0.00019571,2]
[408012914,1773025841605,-489.09932392,0.000196,2]
[408012915,1773025841616,-500.0,0.000196,7]
[408012916,1773025841625,-220.66738088,0.000196,2]
[408012917,1773025841635,-500.0,0.00019617,2]
[408012918,1773025841644,-500.0,0.00019617,2]
[408012919,1773025841654,-500.0,0.00019617,2]
[408012920,1773025841664,-152.59725118,0.00019617,2]
[408012921,1773025841674,-150.0,0.00019617,2]
[408012922,1773025841684,-500.0,0.00019617,2]
[408012923,1773025841694,-150.0,0.00019617,2]
[408012924,1773025841704,-202.15724466,0.00019617,2]
[408012925,1773025841715,-350.0,0.00019617,2]
[408012926,1773025841726,-500.0,0.00019617,2]
[408012927,1773025841736,-500.0,0.00019617,2]
[408012928,1773025841747,-200.0,0.00019617,2]
[408012929,1773025841758,-150.0,0.00019617,2]
[408012930,1773025841771,-439.0,0.00019644,2]
[408012931,1773025841782,-781.45,0.00019646,2]
[408012932,1773025841808,-558.0,0.0001966,2]
[408012933,1773025841833,-500.0,0.00019671,2]
[408012934,1773025841848,-500.0,0.00019671,2]
[408012935,1773025841859,-537.8007681,0.00019671,2]
[408012936,1773025841870,-259.96492822,0.00019671,2]
[408012937,1773025841882,-500.0,0.00019671,2]
[408012938,1773025841893,-256.0280639,0.00019671,2]
[408012939,1773025841907,-500.0,0.00019671,2]
[408012940,1773025841920,-500.0,0.00019671,2]
[408012941,1773025841930,-257.23654009,0.00019671,2]
[408012942,1773025841941,-2806.0,0.0001968,2]
[408012943,1773025841953,-501.0,0.00019681,4]
[408012944,1773025841965,-500.0,0.000197,7]
[408012945,1773025841976,-114903.42329702,0.0001971,2]
[408012946,1773025841992,-273.8617254,0.0001971,2]
[408012947,1773025842026,-946.05260061,0.0001971,2]
[408012959,1773025842847,-20.42378242,0.0001971,2]
[408012960,1773025842858,-562.39994,0.0001971,2]
[408012961,1773025842870,-345.0,0.0001971,2]
[408012962,1773025842888,-673.3310658,0.0001971,2]
[408012963,1773025843048,-44426.34332979,0.0001971,2]
[408012964,1773025843064,-182.415,0.00019714,2]
[408012965,1773025843073,-4699.415,0.00019714,2]
[408012966,1773025843082,-1000.0,0.00019726,2]
[408012967,1773025843091,-500.0,0.00019726,2]
[408012971,1773025843301,-500.0,0.00019726,2]
[408012972,1773025843325,-500.0,0.00019726,2]
[408012973,1773025843335,-438.0,0.00019726,2]
[408012974,1773025843345,-645.06949159,0.00019726,2]
[408012975,1773025843354,-439.0,0.00019733,2]
[408012976,1773025843364,-500.0,0.00019773,2]
[408012977,1773025843373,-490.92760425,0.00019773,2]
[408012978,1773025843382,-189.9006907,0.00019773,2]
[408012979,1773025843391,-500.0,0.00019781,2]
[408012980,1773025843399,-531.1610732,0.00019781,2]
[408012981,1773025843408,-500.0,0.00019781,2]
[408012982,1773025843418,-6215.5358,0.00019798,2]
[408012983,1773025843427,-1000.0,0.00019798,2]
[408012984,1773025843436,-2054.42858037,0.000198,2]
[408012985,1773025843445,-150.0,0.000198,14]
[408012986,1773025843455,-500.0,0.000198,7]
[408012987,1773025843464,-2013.0,0.000198,2]
[408012988,1773025843474,-2000.0,0.000198,2]
[408012989,1773025843484,-2000.0,0.000198,2]
[408012990,1773025843495,-1553.32074583,0.000198,2]
[408012991,1773025843507,-500.0,0.00019809,2]
[408012992,1773025843517,-150.0,0.00019816,2]
[408012993,1773025843528,-439.0,0.00019822,2]
[408012994,1773025843537,-331.5,0.00019825,2]
[408012995,1773025843547,-500.0,0.00019836,2]
[408012996,1773025843559,-500.0,0.00019836,2]
[408012997,1773025843568,-200.0,0.0001984,2]
[408012998,1773025843577,-241.1805101,0.00019856,2]
[408012999,1773025843586,-1536.04360649,0.00019864,2]
[408013000,1773025843595,-194.35400171,0.00019864,2]
[408013001,1773025843604,-187.78006525,0.00019864,2]
[408013002,1773025843614,-282.71673119,0.00019864,2]
[408013003,1773025843624,-152.70368605,0.00019869,2]
[408013004,1773025843633,-500.0,0.00019876,2]
[408013005,1773025843643,-415.86765572,0.00019876,2]